[Event "Chinese Team-ch Men 2025"]
[Site "Zhang Jiakou Hebei"]
[Date "2025.04.27"]
[Round "3.19"]
[White "Chen, KaiLin"]
[Black "Yu, Zhenghuan"]
[Result "1-0"]
[Annotator "ChessBase"]
[ECO "B13"]
[WhiteElo "2329"]
[BlackElo "1757"]
[PlyCount "59"]
[EventDate "2025.04.26"]
[EventType "team-tourn"]
[EventCountry "CHN"]
[SourceTitle "playchess.com"]
[Source "ChessBase"]
[SourceQuality "1"]
[TimeControl "5400+30"]

1. e4 {[%emt 0:00:02]} c6 {[%emt 0:00:11]} 2. d4 {[%emt 0:00:04]} d5 {[%emt 0:00:05]} 3. exd5 {[%emt 0:00:03]} cxd5 {[%emt 0:00:07]} 4. Bd3 {[%emt 0:00:03]} Nc6 {[%emt 0:00:26]} 5. c3 {[%emt 0:00:05]} Nf6 {[%emt 0:02:00]} 6. Bf4 {[%emt 0:00:03]} Bg4 {[%emt 0:00:57]} 7. Qb3 {[%emt 0:00:03]} Qd7 {[%emt 0:00:24]} 8. Nd2 {[%emt 0:00:04]} e6 {[%emt 0:02:34]} 9. Ngf3 {[%emt 0:00:04]} Bd6 {[%emt 0:01:50]} 10. Bxd6 {[%emt 0:00:08]} Qxd6 {[%emt 0:00:06]} 11. O-O {[%emt 0:00:24]} O-O {[%emt 0:01:00]} 12. Rfe1 {[%emt 0:00:11]} Qc7 {[%emt 0:06:37]} 13. Ne5 {[%emt 0:03:13]} Bh5 {[%emt 0:01:12]} 14. h3 {[%emt 0:03:16]} Nd7 {[%emt 0:02:34]} 15. Nxd7 {[%emt 0:06:05]} Qxd7 {[%emt 0:00:06]} 16. Re3 {[%emt 0:01:03]} Bg6 {[%emt 0:04:27]} 17. Bxg6 {[%emt 0:03:33]} hxg6 {[%emt 0:00:07]} 18. Rae1 {[%emt 0:02:48]} Rae8 {[%emt 0:01:44]} 19. Qd1 {[%emt 0:03:05]} b5 {[%emt 0:08:21]} 20. h4 {[%emt 0:07:13]} b4 {[%emt 0:09:43]} 21. h5 {[%emt 0:14:15]} bxc3 {[%emt 0:05:00]} 22. bxc3 {[%emt 0:00:13]} gxh5 {[%emt 0:12:25]} 23. Qxh5 {[%emt 0:00:09]} f5 {[%emt 0:00:16]} 24. Rh3 {[%emt 0:13:35]} Rf6 {[%emt 0:05:30]} 25. Qh7+ {[%emt 0:00:17]} Kf7 {[%emt 0:03:36]} 26. Nf3 {[%emt 0:04:23]} Rf8 {[%emt 0:03:12]} 27. Ne5+ {[%emt 0:04:47]} Nxe5 {[%emt 0:00:08]} 28. dxe5 {[%emt 0:00:02]} Rg6 {[%emt 0:00:14]} 29. Qh5 {[%emt 0:00:05]} Qa4 {[%emt 0:16:22]} 30. Rg3 {[%emt 0:00:30]} 1-0

[Event "Chinese Team-ch Men 2025"]
[Site "Zhang Jiakou Hebei"]
[Date "2025.04.27"]
[Round "3.20"]
[White "Wu, Kaige"]
[Black "Yu, Kaifeng"]
[Result "1-0"]
[Annotator "ChessBase"]
[ECO "B20"]
[WhiteElo "1753"]
[BlackElo "2312"]
[PlyCount "49"]
[EventDate "2025.04.26"]
[EventType "team-tourn"]
[EventCountry "CHN"]
[SourceTitle "playchess.com"]
[Source "ChessBase"]
[SourceQuality "1"]
[TimeControl "5400+30"]

1. e4 {[%emt 0:00:08]} c5 {[%emt 0:00:02]} 2. g3 {[%emt 0:00:17]} Nc6 {[%emt 0:00:08]} 3. Bg2 {[%emt 0:00:04]} g6 {[%emt 0:00:06]} 4. Ne2 {[%emt 0:00:10]} Bg7 {[%emt 0:00:04]} 5. O-O {[%emt 0:00:13]} d6 {[%emt 0:00:18]} 6. c3 {[%emt 0:00:34]} e5 {[%emt 0:01:02]} 7. Na3 {[%emt 0:01:02]} Nge7 {[%emt 0:01:24]} 8. Nc2 {[%emt 0:01:12]} O-O {[%emt 0:11:50]} 9. d4 {[%emt 0:04:34]} exd4 {[%emt 0:00:56]} 10. cxd4 {[%emt 0:00:22]} b6 {[%emt 0:00:15]} 11. Be3 {[%emt 0:06:56]} Ba6 {[%emt 0:00:32]} 12. Re1 {[%emt 0:01:02]} Rc8 {[%emt 0:08:13]} 13. Rb1 {[%emt 0:02:37]} cxd4 {[%emt 0:23:58]} 14. Nexd4 {[%emt 0:02:08]} Nxd4 {[%emt 0:15:56]} 15. Nxd4 {[%emt 0:00:48]} d5 {[%emt 0:07:30]} 16. e5 {[%emt 0:14:10]} Bxe5 {[%emt 0:03:12]} 17. Bg5 {[%emt 0:01:39]} f6 {[%emt 0:04:42]} 18. Ne6 {[%emt 0:06:13]} Qd6 {[%emt 0:04:36]} 19. Nxf8 {[%emt 0:00:46]} fxg5 {[%emt 0:00:05]} 20. Ne6 {[%emt 0:06:46]} Bf6 {[%emt 0:00:20]} 21. Qf3 {[%emt 0:02:18]} Bh8 {[%emt 0:03:44]} 22. Nxg5 {[%emt 0:04:49]} Rf8 {[%emt 0:03:33]} 23. Qe3 {[%emt 0:04:03]} Bf6 {[%emt 0:00:09]} 24. Rbd1 {[%emt 0:02:50]} Rc8 {[%emt 0:01:05]} 25. Ne4 {[%emt 0:01:12]} 1-0

[Event "Chinese Team-ch Men 2025"]
[Site "Zhang Jiakou Hebei"]
[Date "2025.04.27"]
[Round "3.21"]
[White "Wang, Yiye"]
[Black "Xu, Minghui"]
[Result "1/2-1/2"]
[Annotator "ChessBase"]
[ECO "E04"]
[WhiteElo "2446"]
[BlackElo "2459"]
[PlyCount "54"]
[EventDate "2025.04.26"]
[EventType "team-tourn"]
[EventCountry "CHN"]
[SourceTitle "playchess.com"]
[Source "ChessBase"]
[SourceQuality "1"]
[TimeControl "5400+30"]

1. d4 {[%emt 0:00:06]} e6 {[%emt 0:00:24]} 2. g3 {[%emt 0:00:54]} Nf6 {[%emt 0:01:39]} 3. c4 {[%emt 0:00:44]} d5 {[%emt 0:00:19]} 4. Bg2 {[%emt 0:00:45]} dxc4 {[%emt 0:00:57]} 5. Nf3 {[%emt 0:00:30]} Bb4+ {[%emt 0:00:26]} 6. Nbd2 {[%emt 0:04:55]} O-O {[%emt 0:02:10]} 7. O-O {[%emt 0:00:42]} b5 {[%emt 0:01:09]} 8. a3 {[%emt 0:03:42]} Be7 {[%emt 0:04:56]} 9. b3 {[%emt 0:03:03]} c3 {[%emt 0:03:55]} 10. Nb1 {[%emt 0:00:13]} Bb7 {[%emt 0:00:35]} 11. Nxc3 {[%emt 0:00:58]} a6 {[%emt 0:00:55]} 12. Bg5 {[%emt 0:03:37]} c5 {[%emt 0:15:56]} 13. dxc5 {[%emt 0:03:14]} Bxc5 {[%emt 0:03:32]} 14. Bxf6 {[%emt 0:00:38]} Qxf6 {[%emt 0:00:28]} 15. Qc2 {[%emt 0:01:01]} Qe7 {[%emt 0:03:16]} 16. Ng5 {[%emt 0:04:20]} g6 {[%emt 0:02:51]} 17. Bxb7 {[%emt 0:00:24]} Qxb7 {[%emt 0:00:13]} 18. Qe4 {[%emt 0:01:42]} Qxe4 {[%emt 0:01:10]} 19. Ncxe4 {[%emt 0:00:19]} Be7 {[%emt 0:00:42]} 20. Rfc1 {[%emt 0:03:00]} Nd7 {[%emt 0:04:15]} 21. Rc7 {[%emt 0:02:12]} Rfd8 {[%emt 0:00:45]} 22. Rd1 {[%emt 0:01:43]} Ne5 {[%emt 0:01:34]} 23. Rxd8+ {[%emt 0:01:52]} Bxd8 {[%emt 0:04:23]} 24. Rc5 {[%emt 0:01:03]} Nd7 {[%emt 0:00:36]} 25. Rc6 {[%emt 0:00:36]} Ne5 {[%emt 0:03:29]} 26. Rc5 {[%emt 0:00:24]} Nd7 {[%emt 0:00:22]} 27. Rc6 {[%emt 0:00:12]} Ne5 {[%emt 0:00:17]} 1/2-1/2

[Event "Chinese Team-ch Men 2025"]
[Site "Zhang Jiakou Hebei"]
[Date "2025.04.27"]
[Round "3.22"]
[White "Chen, Yuan"]
[Black "Hou, Yifan b"]
[Result "1-0"]
[Annotator "ChessBase"]
[ECO "B45"]
[WhiteElo "2286"]
[BlackElo "2313"]
[PlyCount "103"]
[EventDate "2025.04.26"]
[EventType "team-tourn"]
[EventCountry "CHN"]
[SourceTitle "playchess.com"]
[Source "ChessBase"]
[SourceQuality "1"]
[TimeControl "5400+30"]

1. e4 {[%emt 0:00:04]} c5 {[%emt 0:00:10]} 2. Nf3 {[%emt 0:00:06]} Nc6 {[%emt 0:00:24]} 3. Nc3 {[%emt 0:00:18]} e6 {[%emt 0:05:54]} 4. d4 {[%emt 0:00:29]} cxd4 {[%emt 0:00:22]} 5. Nxd4 {[%emt 0:00:04]} Nf6 {[%emt 0:00:26]} 6. Ndb5 {[%emt 0:03:18]} Bb4 {[%emt 0:01:59]} 7. a3 {[%emt 0:00:13]} Bxc3+ {[%emt 0:00:29]} 8. Nxc3 {[%emt 0:00:06]} d5 {[%emt 0:01:19]} 9. Bd3 {[%emt 0:00:22]} dxe4 {[%emt 0:01:13]} 10. Nxe4 {[%emt 0:00:06]} Nxe4 {[%emt 0:00:23]} 11. Bxe4 {[%emt 0:00:05]} Qxd1+ {[%emt 0:00:20]} 12. Kxd1 {[%emt 0:00:05]} Bd7 {[%emt 0:00:48]} 13. Be3 {[%emt 0:04:49]} O-O-O {[%emt 0:11:02]} 14. Kc1 {[%emt 0:00:37]} b6 {[%emt 0:03:24]} 15. b3 {[%emt 0:01:57]} f5 {[%emt 0:05:47]} 16. Bd3 {[%emt 0:00:29]} e5 {[%emt 0:04:08]} 17. f3 {[%emt 0:02:54]} h6 {[%emt 0:11:24]} 18. Kb2 {[%emt 0:01:52]} Rhe8 {[%emt 0:01:04]} 19. Rae1 {[%emt 0:05:23]} Kb7 {[%emt 0:05:47]} 20. Bf2 {[%emt 0:02:27]} Re7 {[%emt 0:04:01]} 21. h4 {[%emt 0:04:17]} Rde8 {[%emt 0:04:47]} 22. Be3 {[%emt 0:04:05]} Rf8 {[%emt 0:08:15]} 23. Rhf1 {[%emt 0:01:06]} Rfe8 {[%emt 0:01:22]} 24. Rg1 {[%emt 0:00:44]} Rf8 {[%emt 0:00:23]} 25. Rh1 {[%emt 0:08:38]} Rfe8 {[%emt 0:01:16]} 26. Rhf1 {[%emt 0:00:05]} Rf8 {[%emt 0:00:46]} 27. Bd2 {[%emt 0:00:13]} Rg8 {[%emt 0:03:30]} 28. h5 {[%emt 0:02:39]} Rge8 {[%emt 0:05:47]} 29. Bc3 {[%emt 0:01:19]} a6 {[%emt 0:01:56]} 30. a4 {[%emt 0:00:55]} a5 {[%emt 0:02:55]} 31. Bc4 {[%emt 0:02:07]} Be6 {[%emt 0:05:43]} 32. Bb5 {[%emt 0:03:13]} Bd7 {[%emt 0:00:09]} 33. Rd1 {[%emt 0:01:40]} Nb8 {[%emt 0:02:42]} 34. Bc4 {[%emt 0:02:14]} Bc6 {[%emt 0:00:56]} 35. Rd6 {[%emt 0:00:06]} Kc7 {[%emt 0:00:45]} 36. Rg6 {[%emt 0:03:08]} Nd7 {[%emt 0:03:39]} 37. f4 {[%emt 0:00:04]} Nf8 {[%emt 0:03:03]} 38. Rxc6+ {[%emt 0:00:52]} Kxc6 {[%emt 0:00:06]} 39. Bb5+ {[%emt 0:00:03]} Kd5 {[%emt 0:00:54]} 40. Bxe8 {[%emt 0:01:23]} Rxe8 {[%emt 0:00:06]} 41. Bxe5 {[%emt 0:00:57]} g6 {[%emt 0:00:59]} 42. Rd1+ {[%emt 0:00:38]} Ke4 {[%emt 0:00:19]} 43. Bc7 {[%emt 0:06:44]} Rc8 {[%emt 0:00:19]} 44. Re1+ {[%emt 0:00:11]} Kd5 {[%emt 0:00:08]} 45. Bxb6 {[%emt 0:00:04]} Nd7 {[%emt 0:00:36]} 46. Bxa5 {[%emt 0:00:43]} gxh5 {[%emt 0:00:04]} 47. Re7 {[%emt 0:03:42]} Kc6 {[%emt 0:01:00]} 48. Rh7 {[%emt 0:00:29]} Rg8 {[%emt 0:01:03]} 49. Rxh6+ {[%emt 0:00:19]} Kd5 {[%emt 0:00:03]} 50. Rxh5 {[%emt 0:00:29]} Ke4 {[%emt 0:00:07]} 51. Rg5 {[%emt 0:01:26]} Ra8 {[%emt 0:00:13]} 52. Bd2 {[%emt 0:00:16]} 1-0

[Event "Chinese Team-ch Men 2025"]
[Site "Zhang Jiakou Hebei"]
[Date "2025.04.27"]
[Round "3.23"]
[White "Fan, Huifeng"]
[Black "Chen, Zhi"]
[Result "1-0"]
[Annotator "ChessBase"]
[ECO "B30"]
[WhiteElo "2178"]
[BlackElo "2094"]
[PlyCount "95"]
[EventDate "2025.04.26"]
[EventType "team-tourn"]
[EventCountry "CHN"]
[SourceTitle "playchess.com"]
[Source "ChessBase"]
[SourceQuality "1"]
[TimeControl "5400+30"]

1. e4 {[%emt 0:00:04]} c5 {[%emt 0:00:15]} 2. Nf3 {[%emt 0:00:11]} Nc6 {[%emt 0:00:39]} 3. Bb5 {[%emt 0:00:07]} e6 {[%emt 0:00:07]} 4. Bxc6 {[%emt 0:22:05]} bxc6 {[%emt 0:00:05]} 5. b3 {[%emt 0:00:03]} d6 {[%emt 0:13:44]} 6. e5 {[%emt 0:04:58]} dxe5 {[%emt 0:02:07]} 7. Nxe5 {[%emt 0:00:06]} Qd4 {[%emt 0:08:06]} 8. Nc4 {[%emt 0:00:43]} Qxa1 {[%emt 0:17:03]} 9. Nc3 {[%emt 0:01:04]} Nf6 {[%emt 0:11:15]} 10. O-O {[%emt 0:02:08]} Ba6 {[%emt 0:11:05]} 11. Qf3 {[%emt 0:01:07]} Rc8 {[%emt 0:01:28]} 12. Ba3 {[%emt 0:03:29]} Qxf1+ {[%emt 0:01:00]} 13. Kxf1 {[%emt 0:00:08]} Be7 {[%emt 0:00:52]} 14. Na4 {[%emt 0:02:12]} Bxc4+ {[%emt 0:00:08]} 15. bxc4 {[%emt 0:00:16]} Nd7 {[%emt 0:02:31]} 16. Qe3 {[%emt 0:01:52]} Nb6 {[%emt 0:02:20]} 17. Bxc5 {[%emt 0:00:55]} Bxc5 {[%emt 0:06:35]} 18. Nxc5 {[%emt 0:00:10]} O-O {[%emt 0:00:12]} 19. d3 {[%emt 0:00:06]} Rfd8 {[%emt 0:00:44]} 20. a4 {[%emt 0:00:16]} Rb8 {[%emt 0:03:20]} 21. Qe4 {[%emt 0:04:42]} Rbc8 {[%emt 0:04:55]} 22. a5 {[%emt 0:00:35]} Nd7 {[%emt 0:01:19]} 23. Nb7 {[%emt 0:00:10]} Rf8 {[%emt 0:04:28]} 24. Qd4 {[%emt 0:00:10]} Rc7 {[%emt 0:01:00]} 25. Qxa7 {[%emt 0:02:43]} Rb8 {[%emt 0:02:03]} 26. a6 {[%emt 0:00:06]} c5 {[%emt 0:03:06]} 27. Qxb8+ {[%emt 0:00:06]} Nxb8 {[%emt 0:00:04]} 28. a7 {[%emt 0:00:04]} Rxb7 {[%emt 0:00:54]} 29. a8=Q {[%emt 0:00:07]} Rb1+ {[%emt 0:02:16]} 30. Ke2 {[%emt 0:00:05]} h6 {[%emt 0:00:58]} 31. d4 {[%emt 0:05:51]} cxd4 {[%emt 0:00:21]} 32. c5 {[%emt 0:00:04]} Kh7 {[%emt 0:00:36]} 33. c6 {[%emt 0:00:12]} Nxc6 {[%emt 0:00:37]} 34. Qxc6 {[%emt 0:00:06]} Rb4 {[%emt 0:00:23]} 35. Kd3 {[%emt 0:00:16]} g6 {[%emt 0:00:36]} 36. Qc5 {[%emt 0:01:00]} Rb1 {[%emt 0:00:41]} 37. Kxd4 {[%emt 0:00:07]} Rd1+ {[%emt 0:00:16]} 38. Ke3 {[%emt 0:00:22]} g5 {[%emt 0:00:09]} 39. c4 {[%emt 0:00:36]} Kg6 {[%emt 0:00:09]} 40. Qe7 {[%emt 0:00:47]} Rc1 {[%emt 0:00:20]} 41. c5 {[%emt 0:00:05]} h5 {[%emt 0:00:33]} 42. Qd6 {[%emt 0:00:17]} Kf5 {[%emt 0:00:17]} 43. c6 {[%emt 0:00:35]} f6 {[%emt 0:00:33]} 44. c7 {[%emt 0:00:12]} Kg4 {[%emt 0:01:26]} 45. h3+ {[%emt 0:00:32]} Kf5 {[%emt 0:00:11]} 46. Qd3+ {[%emt 0:00:06]} Ke5 {[%emt 0:00:11]} 47. Qd4+ {[%emt 0:00:05]} Kf5 {[%emt 0:00:09]} 48. Qe4# {[%emt 0:00:04]} 1-0

[Event "Chinese Team-ch Men 2025"]
[Site "Zhang Jiakou Hebei"]
[Date "2025.04.27"]
[Round "3.24"]
[White "Gao, Kai"]
[Black "Qu, Yanqiao"]
[Result "1-0"]
[Annotator "NA"]
[ECO "C42"]
[WhiteElo "1894"]
[BlackElo "1969"]
[PlyCount "85"]
[EventDate "2025.04.26"]
[EventType "team-tourn"]
[EventCountry "CHN"]
[SourceTitle "playchess.com"]
[Source "ChessBase"]
[SourceQuality "1"]
[TimeControl "5400+30"]

1. e4 {[%emt 0:00:02]} e5 {[%emt 0:00:17]} 2. Nf3 {[%emt 0:00:09]} Nf6 {[%emt 0:00:16]} 3. Nxe5 {[%emt 0:00:16]} d6 {[%emt 0:00:25]} 4. Nf3 {[%emt 0:00:15]} Nxe4 {[%emt 0:00:16]} 5. d4 {[%emt 0:00:17]} d5 {[%emt 0:00:10]} 6. Bd3 {[%emt 0:00:14]} Nc6 {[%emt 0:00:16]} 7. O-O {[%emt 0:01:22]} Be7 {[%emt 0:00:13]} 8. Nbd2 {[%emt 0:00:57]} Bf5 {[%emt 0:03:06]} 9. Re1 {[%emt 0:02:02]} Nxd2 {[%emt 0:00:17]} 10. Qxd2 {[%emt 0:03:13]} Bxd3 {[%emt 0:00:11]} 11. Qxd3 {[%emt 0:00:05]} O-O {[%emt 0:00:10]} 12. Bf4 {[%emt 0:03:30]} Qd7 {[%emt 0:09:15]} 13. Qb5 {[%emt 0:08:22]} Bd6 {[%emt 0:25:25]} 14. Qxd5 {[%emt 0:11:14]} Nb4 {[%emt 0:00:32]} 15. Qb3 {[%emt 0:00:18]} Nxc2 {[%emt 0:00:50]} 16. Qxc2 {[%emt 0:00:20]} Bxf4 {[%emt 0:00:01]} 17. Qe4 {[%emt 0:00:10]} Bd6 {[%emt 0:13:37]} 18. Qxb7 {[%emt 0:10:17]} a5 {[%emt 0:00:08]} 19. b3 {[%emt 0:06:44]} Rab8 {[%emt 0:02:11]} 20. Qa6 {[%emt 0:04:43]} Qf5 {[%emt 0:01:53]} 21. Rac1 {[%emt 0:02:16]} Rb5 {[%emt 0:04:24]} 22. Qc6 {[%emt 0:02:37]} Rd5 {[%emt 0:05:09]} 23. Kh1 {[%emt 0:08:14]} f6 {[%emt 0:06:45]} 24. Re8 {[%emt 0:01:25]} g5 {[%emt 0:01:55]} 25. Rxf8+ {[%emt 0:10:07]} Kxf8 {[%emt 0:00:41]} 26. h3 {[%emt 0:01:06]} Kg7 {[%emt 0:06:21]} 27. Re1 {[%emt 0:03:36]} h5 {[%emt 0:02:39]} 28. Kg1 {[%emt 0:00:32]} g4 {[%emt 0:04:25]} 29. hxg4 {[%emt 0:00:36]} hxg4 {[%emt 0:00:02]} 30. Nh4 {[%emt 0:00:10]} Qh5 {[%emt 0:06:09]} 31. g3 {[%emt 0:01:00]} Qf7 {[%emt 0:01:41]} 32. Re8 {[%emt 0:03:02]} f5 {[%emt 0:00:32]} 33. Rd8 {[%emt 0:00:22]} Kf6 {[%emt 0:01:25]} 34. Rf8 {[%emt 0:01:57]} Qxf8 {[%emt 0:00:29]} 35. Qxd5 {[%emt 0:00:02]} Kg5 {[%emt 0:01:09]} 36. Qxa5 {[%emt 0:00:13]} Qf6 {[%emt 0:01:26]} 37. Qd5 {[%emt 0:02:14]} c6 {[%emt 0:00:53]} 38. Qg8+ {[%emt 0:03:49]} Kh6 {[%emt 0:00:00]} 39. Qc8 {[%emt 0:02:08]} Kg5 {[%emt 0:00:46]} 40. Qxc6 {[%emt 0:03:06]} Qxd4 {[%emt 0:00:48]} 41. Qc1+ {[%emt 0:00:40]} Kf6 {[%emt 0:02:44]} 42. Qh6+ {[%emt 0:00:12]} Kf7 {[%emt 0:00:05]} 43. Qg6+ {[%emt 0:00:45]} 1-0

[Event "Chinese Team-ch Men 2025"]
[Site "Zhang Jiakou Hebei"]
[Date "2025.04.27"]
[Round "3.25"]
[White "Ye, Xuqing"]
[Black "Zhang, Ziji"]
[Result "1/2-1/2"]
[Annotator "ChessBase"]
[ECO "E63"]
[WhiteElo "1938"]
[BlackElo "2371"]
[PlyCount "109"]
[EventDate "2025.04.26"]
[EventType "team-tourn"]
[EventCountry "CHN"]
[SourceTitle "playchess.com"]
[Source "ChessBase"]
[SourceQuality "1"]
[TimeControl "5400+30"]

1. d4 {[%emt 0:00:02]} Nf6 {[%emt 0:00:10]} 2. c4 {[%emt 0:00:08]} g6 {[%emt 0:01:23]} 3. Nf3 {[%emt 0:00:08]} Bg7 {[%emt 0:00:13]} 4. g3 {[%emt 0:00:10]} O-O {[%emt 0:00:38]} 5. Bg2 {[%emt 0:00:04]} d6 {[%emt 0:01:05]} 6. O-O {[%emt 0:00:17]} Nc6 {[%emt 0:01:12]} 7. Nc3 {[%emt 0:00:36]} a6 {[%emt 0:00:31]} 8. h3 {[%emt 0:01:54]} Rb8 {[%emt 0:09:18]} 9. a4 {[%emt 0:06:24]} Nd7 {[%emt 0:06:31]} 10. b3 {[%emt 0:02:16]} a5 {[%emt 0:03:45]} 11. Ba3 {[%emt 0:03:09]} Re8 {[%emt 0:03:07]} 12. Ra2 {[%emt 0:10:22]} Nb4 {[%emt 0:07:49]} 13. Rd2 {[%emt 0:00:46]} c6 {[%emt 0:00:54]} 14. Na2 {[%emt 0:01:12]} Qb6 {[%emt 0:07:02]} 15. Nxb4 {[%emt 0:03:21]} axb4 {[%emt 0:00:07]} 16. Bb2 {[%emt 0:00:10]} Nf6 {[%emt 0:06:32]} 17. Ne1 {[%emt 0:07:46]} d5 {[%emt 0:04:14]} 18. c5 {[%emt 0:01:50]} Qa5 {[%emt 0:00:06]} 19. Nd3 {[%emt 0:02:35]} Ne4 {[%emt 0:07:40]} 20. Rc2 {[%emt 0:00:09]} Nc3 {[%emt 0:03:56]} 21. Qd2 {[%emt 0:04:24]} Bxd4 {[%emt 0:03:35]} 22. Nxb4 {[%emt 0:00:06]} Nxe2+ {[%emt 0:02:15]} 23. Kh2 {[%emt 0:02:47]} Bf5 {[%emt 0:08:42]} 24. Bxd4 {[%emt 0:15:56]} Nxd4 {[%emt 0:00:29]} 25. Qxd4 {[%emt 0:00:58]} e5 {[%emt 0:00:06]} 26. Qh4 {[%emt 0:02:52]} Bxc2 {[%emt 0:00:07]} 27. Nxc2 {[%emt 0:00:05]} Qxc5 {[%emt 0:00:03]} 28. Ne3 {[%emt 0:00:49]} Qe7 {[%emt 0:00:34]} 29. Qxe7 {[%emt 0:00:50]} Rxe7 {[%emt 0:00:04]} 30. g4 {[%emt 0:01:06]} f6 {[%emt 0:02:21]} 31. b4 {[%emt 0:02:13]} Rd8 {[%emt 0:01:39]} 32. b5 {[%emt 0:01:43]} d4 {[%emt 0:04:58]} 33. Nc4 {[%emt 0:02:39]} cxb5 {[%emt 0:00:27]} 34. axb5 {[%emt 0:00:05]} e4 {[%emt 0:01:05]} 35. Re1 {[%emt 0:01:33]} f5 {[%emt 0:00:50]} 36. Kg3 {[%emt 0:00:06]} Rc7 {[%emt 0:01:27]} 37. Bf1 {[%emt 0:03:12]} Rdc8 {[%emt 0:07:39]} 38. gxf5 {[%emt 0:03:10]} gxf5 {[%emt 0:00:17]} 39. Kf4 {[%emt 0:00:48]} Rxc4 {[%emt 0:01:40]} 40. Bxc4+ {[%emt 0:00:05]} Rxc4 {[%emt 0:00:01]} 41. Kxf5 {[%emt 0:00:07]} d3 {[%emt 0:00:07]} 42. Rd1 {[%emt 0:00:18]} Kf7 {[%emt 0:03:02]} 43. f3 {[%emt 0:01:56]} exf3 {[%emt 0:00:09]} 44. Rxd3 {[%emt 0:00:04]} f2 {[%emt 0:00:09]} 45. Rf3 {[%emt 0:00:09]} Rc2 {[%emt 0:00:06]} 46. h4 {[%emt 0:02:31]} Ke7 {[%emt 0:00:50]} 47. Ke5 {[%emt 0:01:10]} h5 {[%emt 0:02:11]} 48. b6 {[%emt 0:01:10]} Rd2 {[%emt 0:01:10]} 49. Kf5 {[%emt 0:00:46]} Kd6 {[%emt 0:00:25]} 50. Kg6 {[%emt 0:00:12]} Ke5 {[%emt 0:02:11]} 51. Kxh5 {[%emt 0:00:03]} Ke4 {[%emt 0:00:04]} 52. Kg4 {[%emt 0:00:03]} Rc2 {[%emt 0:00:29]} 53. h5 {[%emt 0:01:11]} Rb2 {[%emt 0:00:18]} 54. Rf4+ {[%emt 0:02:27]} Ke5 {[%emt 0:01:01]} 55. Kg5 {[%emt 0:01:13]} 1/2-1/2

[Event "Chinese Team-ch Men 2025"]
[Site "Zhang Jiakou Hebei"]
[Date "2025.04.27"]
[Round "3.26"]
[White "Fan, Jingyi"]
[Black "Yu, Zhe"]
[Result "1/2-1/2"]
[Annotator "ChessBase"]
[ECO "D02"]
[WhiteElo "2175"]
[BlackElo "1837"]
[PlyCount "156"]
[EventDate "2025.04.26"]
[EventType "team-tourn"]
[EventCountry "CHN"]
[SourceTitle "playchess.com"]
[Source "ChessBase"]
[SourceQuality "1"]
[TimeControl "5400+30"]

1. d4 {[%emt 0:00:04]} Nf6 {[%emt 0:00:07]} 2. Nf3 {[%emt 0:00:03]} e6 {[%emt 0:00:13]} 3. Bf4 {[%emt 0:00:06]} c5 {[%emt 0:00:19]} 4. e3 {[%emt 0:00:03]} d5 {[%emt 0:00:15]} 5. Nbd2 {[%emt 0:00:49]} Nc6 {[%emt 0:01:15]} 6. c3 {[%emt 0:00:20]} Bd6 {[%emt 0:01:53]} 7. Bg3 {[%emt 0:00:19]} O-O {[%emt 0:02:40]} 8. Bd3 {[%emt 0:00:30]} b6 {[%emt 0:02:13]} 9. e4 {[%emt 0:00:45]} dxe4 {[%emt 0:01:45]} 10. Nxe4 {[%emt 0:00:29]} Nxe4 {[%emt 0:00:50]} 11. Bxe4 {[%emt 0:00:05]} Bb7 {[%emt 0:00:20]} 12. dxc5 {[%emt 0:02:30]} Bxc5 {[%emt 0:01:38]} 13. Qa4 {[%emt 0:01:32]} Rc8 {[%emt 0:08:05]} 14. Rd1 {[%emt 0:02:50]} Qe7 {[%emt 0:02:37]} 15. b4 {[%emt 0:12:01]} Nxb4 {[%emt 0:08:57]} 16. Rd7 {[%emt 0:26:06]} Bxe4 {[%emt 0:05:33]} 17. Rxe7 {[%emt 0:01:55]} Bxe7 {[%emt 0:00:23]} 18. O-O {[%emt 0:02:49]} Rxc3 {[%emt 0:23:17]} 19. Nd4 {[%emt 0:25:04]} Rd8 {[%emt 0:10:37]} 20. a3 {[%emt 0:05:14]} Rxd4 {[%emt 0:11:01]} 21. axb4 {[%emt 0:03:42]} Rc8 {[%emt 0:01:01]} 22. Qxa7 {[%emt 0:01:11]} Bxb4 {[%emt 0:00:32]} 23. Qxb6 {[%emt 0:00:28]} Bc5 {[%emt 0:00:15]} 24. Qb2 {[%emt 0:04:28]} Rdd8 {[%emt 0:05:13]} 25. h3 {[%emt 0:02:37]} Bd4 {[%emt 0:00:59]} 26. Qb4 {[%emt 0:00:33]} Ba8 {[%emt 0:02:41]} 27. Kh2 {[%emt 0:00:46]} Bc5 {[%emt 0:01:16]} 28. Qa4 {[%emt 0:01:33]} h6 {[%emt 0:00:57]} 29. Rd1 {[%emt 0:01:14]} Rxd1 {[%emt 0:00:36]} 30. Qxd1 {[%emt 0:00:02]} Bd5 {[%emt 0:00:23]} 31. Be5 {[%emt 0:01:59]} f6 {[%emt 0:01:10]} 32. Bg3 {[%emt 0:00:21]} Rd8 {[%emt 0:00:35]} 33. Qb1 {[%emt 0:00:57]} Be7 {[%emt 0:01:54]} 34. Qb6 {[%emt 0:01:09]} Rd7 {[%emt 0:01:08]} 35. Bc7 {[%emt 0:00:22]} Bf8 {[%emt 0:00:56]} 36. Qb8 {[%emt 0:00:35]} Kf7 {[%emt 0:01:09]} 37. Qc8 {[%emt 0:00:50]} Re7 {[%emt 0:00:45]} 38. Bd6 {[%emt 0:01:47]} Re8 {[%emt 0:00:04]} 39. Qd7+ {[%emt 0:00:09]} Be7 {[%emt 0:00:06]} 40. h4 {[%emt 0:01:00]} h5 {[%emt 0:00:24]} 41. Qc7 {[%emt 0:00:30]} Kf8 {[%emt 0:00:13]} 42. Bf4 {[%emt 0:00:33]} Rd8 {[%emt 0:00:17]} 43. Qc2 {[%emt 0:00:43]} f5 {[%emt 0:00:25]} 44. Qc3 {[%emt 0:00:38]} Bf6 {[%emt 0:01:18]} 45. Qc5+ {[%emt 0:00:23]} Be7 {[%emt 0:00:36]} 46. Qc3 {[%emt 0:00:24]} Bf6 {[%emt 0:00:45]} 47. Qa3+ {[%emt 0:00:10]} Be7 {[%emt 0:00:25]} 48. Qg3 {[%emt 0:00:36]} Kf7 {[%emt 0:00:30]} 49. Be5 {[%emt 0:00:24]} g6 {[%emt 0:00:32]} 50. Qf4 {[%emt 0:00:32]} Rg8 {[%emt 0:00:43]} 51. Qh6 {[%emt 0:00:16]} Bf6 {[%emt 0:00:39]} 52. Bg3 {[%emt 0:01:01]} e5 {[%emt 0:00:54]} 53. Qd2 {[%emt 0:00:09]} Rd8 {[%emt 0:00:15]} 54. f4 {[%emt 0:01:09]} e4 {[%emt 0:00:53]} 55. Bf2 {[%emt 0:00:11]} Be6 {[%emt 0:00:20]} 56. Qc2 {[%emt 0:00:37]} Bd4 {[%emt 0:00:56]} 57. Bxd4 {[%emt 0:00:48]} Rxd4 {[%emt 0:00:02]} 58. Qc7+ {[%emt 0:00:12]} Rd7 {[%emt 0:00:13]} 59. Qe5 {[%emt 0:00:22]} Re7 {[%emt 0:00:25]} 60. Qc3 {[%emt 0:00:34]} Bd5 {[%emt 0:00:27]} 61. Qe3 {[%emt 0:00:18]} Be6 {[%emt 0:00:56]} 62. Kg1 {[%emt 0:00:29]} Rb7 {[%emt 0:00:19]} 63. Qc3 {[%emt 0:00:12]} Rd7 {[%emt 0:01:15]} 64. Kf2 {[%emt 0:00:22]} Kg8 {[%emt 0:00:51]} 65. Qc6 {[%emt 0:00:33]} Re7 {[%emt 0:00:30]} 66. Ke3 {[%emt 0:00:21]} Bf7 {[%emt 0:00:08]} 67. Qc5 {[%emt 0:00:17]} Re8 {[%emt 0:00:11]} 68. Qb6 {[%emt 0:00:48]} Re6 {[%emt 0:00:04]} 69. Qb8+ {[%emt 0:00:25]} Re8 {[%emt 0:00:03]} 70. Qb2 {[%emt 0:00:12]} Re6 {[%emt 0:00:10]} 71. Qc2 {[%emt 0:00:52]} Re8 {[%emt 0:00:06]} 72. Qb2 {[%emt 0:00:24]} Re6 {[%emt 0:00:07]} 73. Qd2 {[%emt 0:00:26]} Re8 {[%emt 0:00:07]} 74. Qc2 {[%emt 0:00:25]} Re6 {[%emt 0:00:03]} 75. Qb2 {[%emt 0:00:05]} Re8 {[%emt 0:00:03]} 76. Qc2 {[%emt 0:00:05]} Re6 {[%emt 0:00:02]} 77. Qb2 {[%emt 0:00:07]} Re8 {[%emt 0:00:04]} 78. Qc2 {[%emt 0:00:04]} Re6 {[%emt 0:00:02]} 1/2-1/2